[Event "Catalan Youth Championship 2024"]
[Site "Cambrils"]
[Date "2024.03.27"]
[Round "7.2"]
[White "Garcia Huerta, Joaquin Marc"]
[Black "Perez Monakhov, Andres"]
[Result "1/2-1/2"]
[ECO "B06"]
[WhiteElo "1617"]
[BlackElo "1765"]
[Annotator "NA RC"]
[PlyCount "135"]
[EventDate "2024.03.13"]
[EventType "swiss"]
[EventCountry "ESP"]
[SourceTitle "playchess.com"]
[Source "ChessBase"]
[SourceQuality "1"]
[TimeControl "5400+30"]

1. e4 {[%emt 0:00:05]} g6 {[%emt 0:00:07]} 2. d4 {[%emt 0:00:27]} Bg7 {[%emt 0:00:09]} 3. Nc3 {[%emt 0:00:53]} d6 {[%emt 0:00:36]} 4. Be3 {[%emt 0:01:16]} Nf6 {[%emt 0:01:00]} 5. h3 {[%emt 0:01:43]} Nc6 {[%emt 0:02:03]} 6. f4 {[%emt 0:03:32]} d5 {[%emt 0:05:05]} 7. e5 {[%emt 0:05:16]} Ne4 {[%emt 0:01:21]} 8. Nxe4 {[%emt 0:03:28]} dxe4 {[%emt 0:00:10]} 9. c4 {[%emt 0:18:02]} e6 {[%emt 0:02:25]} 10. Ne2 {[%emt 0:10:24]} Ne7 {[%emt 0:05:23]} 11. g3 {[%emt 0:05:51]} Nf5 {[%emt 0:04:17]} 12. Qd2 {[%emt 0:20:04]} b6 {[%emt 0:01:22]} 13. Bg2 {[%emt 0:02:28]} Bb7 {[%emt 0:00:20]} 14. O-O {[%emt 0:00:42]} h5 {[%emt 0:00:54]} 15. Kh2 {[%emt 0:02:49]} h4 {[%emt 0:04:04]} 16. g4 {[%emt 0:01:21]} Ng3 {[%emt 0:00:14]} 17. Rf2 {[%emt 0:05:48]} Qe7 {[%emt 0:00:55]} 18. Rd1 {[%emt 0:02:57]} O-O-O {[%emt 0:00:50]} 19. a4 {[%emt 0:00:58]} g5 {[%emt 0:05:43]} 20. b4 {[%emt 0:02:27]} gxf4 {[%emt 0:00:48]} 21. Bxf4 {[%emt 0:00:21]} Qd7 {[%emt 0:01:20]} 22. a5 {[%emt 0:01:08]} Qc6 {[%emt 0:02:58]} 23. a6 {[%emt 0:00:57]} Ba8 {[%emt 0:00:34]} 24. c5 {[%emt 0:01:37]} b5 {[%emt 0:04:09]} 25. Nxg3 {[%emt 0:01:39]} hxg3+ {[%emt 0:56:13]} 26. Bxg3 {[%emt 0:00:06]} Rhf8 {[%emt 0:00:00]} 27. Re2 {[%emt 0:01:06]} Qxa6 {[%emt 0:00:00]} 28. Bxe4 {[%emt 0:00:20]} Bd5 {[%emt 0:00:00]} 29. Bxd5 {[%emt 0:00:17]} Rxd5 {[%emt 0:00:00]} 30. Qa2 {[%emt 0:00:20]} Qxa2 {[%emt 0:00:00]} 31. Rxa2 {[%emt 0:00:04]} Kb8 {[%emt 0:00:00]} 32. Bf2 {[%emt 0:00:21]} Bxe5+ {[%emt 0:00:00]} 33. Kg2 {[%emt 0:08:13]} Rfd8 {[%emt 0:00:00]} 34. Rad2 {[%emt 0:00:00]} Bf4 {[%emt 0:00:00]} 35. Rd3 {[%emt 0:00:00]} Bh6 {[%emt 0:00:00]} 36. Rf3 {[%emt 0:00:00]} R8d7 {[%emt 0:00:00]} 37. c6 {[%emt 0:00:00]} Re7 {[%emt 0:00:00]} 38. Bh4 {[%emt 0:00:00]} Bg5 {[%emt 0:00:00]} 39. Bxg5 {[%emt 0:00:00]} Rxg5 {[%emt 0:00:00]} 40. Kg3 {[%emt 0:00:00]} f5 {[%emt 0:00:00]} 41. d5 {[%emt 0:00:00]} Rg8 {[%emt 0:00:00]} 42. dxe6 {[%emt 0:00:00]} fxg4 {[%emt 0:00:00]} 43. hxg4 {[%emt 0:00:00]} Rxe6 {[%emt 0:00:00]} 44. Rd5 {[%emt 0:00:00]} a6 {[%emt 0:00:00]} 45. Kh4 {[%emt 0:00:30]} Rxc6 {[%emt 0:00:00]} 46. g5 {[%emt 0:00:13]} Rc4+ {[%emt 0:00:00]} 47. Kh5 {[%emt 0:00:12]} Rxb4 {[%emt 0:00:00]} 48. g6 {[%emt 0:01:23]} Rb1 {[%emt 0:00:00]} 49. Rdd3 {[%emt 0:01:21]} Rh1+ {[%emt 0:00:00]} 50. Rh3 {[%emt 0:00:08]} Rh8+ {[%emt 0:00:00]} 51. Kg4 {[%emt 0:00:10]} R1xh3 {[%emt 0:00:00]} 52. Rxh3 {[%emt 0:00:09]} Rg8 {[%emt 0:00:00]} 53. Kg5 {[%emt 0:00:15]} Kb7 {[%emt 0:00:00]} 54. Kf6 {[%emt 0:00:16]} Kb6 {[%emt 0:00:00]} 55. Kf7 {[%emt 0:00:14]} Rxg6 {[%emt 0:00:00]} 56. Kxg6 {[%emt 0:00:07]} c5 {[%emt 0:00:00]} 57. Kf5 {[%emt 0:00:03]} b4 {[%emt 0:00:00]} 58. Ke4 {[%emt 0:00:08]} Kb5 {[%emt 0:00:00]} 59. Kd3 {[%emt 0:00:40]} a5 {[%emt 0:00:00]} 60. Kc2 {[%emt 0:00:06]} a4 {[%emt 0:00:00]} 61. Rh5 {[%emt 0:00:21]} Kb6 {[%emt 0:00:00]} 62. Kb2 {[%emt 0:02:07]} c4 {[%emt 0:00:00]} 63. Rh1 {[%emt 0:03:13]} a3+ {[%emt 0:00:00]} 64. Ka2 {[%emt 0:00:47]} Kb5 {[%emt 0:00:00]} 65. Rh8 {[%emt 0:01:25]} Kc5 {[%emt 0:00:00]} 66. Rh4 {[%emt 0:00:15]} Kb5 {[%emt 0:00:00]} 67. Rh8 {[%emt 0:00:20]} Kc6 {[%emt 0:00:00]} 68. Rh5 {[%emt 0:00:19]} 1/2-1/2

[Event "Catalan Youth Championship 2024"]
[Site "Cambrils"]
[Date "2024.03.27"]
[Round "7.3"]
[White "Garcia Corpas, Nicolas"]
[Black "Serradell Munoz, Silvia"]
[Result "1-0"]
[ECO "B27"]
[WhiteElo "1679"]
[BlackElo "1564"]
[Annotator "NA RC"]
[PlyCount "77"]
[EventDate "2024.03.13"]
[EventType "swiss"]
[EventCountry "ESP"]
[SourceTitle "playchess.com"]
[Source "ChessBase"]
[SourceQuality "1"]
[TimeControl "5400+30"]

1. e4 {[%emt 0:00:03]} c5 {[%emt 0:00:10]} 2. Nf3 {[%emt 0:00:14]} g6 {[%emt 0:00:31]} 3. c3 {[%emt 0:00:14]} d5 {[%emt 0:01:17]} 4. e5 {[%emt 0:00:55]} Bf5 {[%emt 0:00:59]} 5. d4 {[%emt 0:01:17]} e6 {[%emt 1:30:03]} 6. Be2 {[%emt 1:30:47]} Ne7 {[%emt 0:00:00]} 7. O-O {[%emt 0:00:00]} Nec6 {[%emt 0:00:00]} 8. Be3 {[%emt 0:00:00]} Be7 {[%emt 0:00:00]} 9. dxc5 {[%emt 0:00:00]} Nd7 {[%emt 0:00:00]} 10. Bb5 {[%emt 0:00:00]} Nxc5 {[%emt 0:00:00]} 11. Nd4 {[%emt 0:00:00]} Qd7 {[%emt 0:00:00]} 12. b4 {[%emt 0:03:00]} Na6 {[%emt 0:00:00]} 13. Nxc6 {[%emt 0:00:00]} bxc6 {[%emt 0:00:00]} 14. Bxa6 {[%emt 0:00:00]} h5 {[%emt 0:00:00]} 15. Bd3 {[%emt 0:00:00]} Bxd3 {[%emt 0:00:00]} 16. Qxd3 {[%emt 0:00:00]} Qc7 {[%emt 0:00:00]} 17. f4 {[%emt 0:00:00]} h4 {[%emt 0:00:00]} 18. h3 {[%emt 0:00:00]} Rg8 {[%emt 0:00:00]} 19. Nd2 {[%emt 0:00:00]} g5 {[%emt 0:00:00]} 20. fxg5 {[%emt 0:00:00]} Qxe5 {[%emt 0:00:00]} 21. Bf4 {[%emt 0:00:00]} Qg7 {[%emt 0:00:00]} 22. Nf3 {[%emt 0:00:00]} f6 {[%emt 0:00:00]} 23. g6 {[%emt 0:00:00]} e5 {[%emt 0:00:00]} 24. Nxh4 {[%emt 0:00:00]} exf4 {[%emt 0:00:00]} 25. Rae1 {[%emt 0:00:00]} Kf8 {[%emt 0:00:00]} 26. Qf3 {[%emt 0:00:00]} Re8 {[%emt 0:00:00]} 27. Qxf4 {[%emt 0:00:00]} Rh8 {[%emt 0:00:00]} 28. Rxe7 {[%emt 0:00:00]} Rxe7 {[%emt 0:00:00]} 29. Nf5 {[%emt 0:00:00]} Qxg6 {[%emt 0:00:00]} 30. Nxe7 {[%emt 0:00:00]} Kxe7 {[%emt 0:00:00]} 31. Qc7+ {[%emt 0:00:00]} Kf8 {[%emt 0:00:00]} 32. Qd8+ {[%emt 0:00:00]} Kg7 {[%emt 0:00:00]} 33. Qd7+ {[%emt 0:01:12]} Kf8 {[%emt 0:00:00]} 34. Qxc6 {[%emt 0:01:23]} Kg7 {[%emt 0:00:00]} 35. Qd7+ {[%emt 0:01:21]} Kf8 {[%emt 0:00:00]} 36. Qxd5 {[%emt 0:00:33]} Rxh3 {[%emt 0:00:00]} 37. Qd8+ {[%emt 0:00:27]} Kf7 {[%emt 0:00:00]} 38. Qd7+ {[%emt 0:00:05]} Kf8 {[%emt 0:00:00]} 39. Qxh3 {[%emt 0:00:11]} 1-0

[Event "Catalan Youth Championship 2024"]
[Site "Cambrils"]
[Date "2024.03.27"]
[Round "7.4"]
[White "Mumbru Borges, Marc"]
[Black "Saltos Macias, Gael"]
[Result "0-1"]
[ECO "B03"]
[WhiteElo "1458"]
[BlackElo "1630"]
[Annotator "NA RC"]
[PlyCount "120"]
[EventDate "2024.03.13"]
[EventType "swiss"]
[EventCountry "ESP"]
[SourceTitle "playchess.com"]
[Source "ChessBase"]
[SourceQuality "1"]
[TimeControl "5400+30"]

1. e4 {[%emt 0:00:03]} Nf6 {[%emt 0:00:17]} 2. e5 {[%emt 0:00:14]} Nd5 {[%emt 0:00:13]} 3. d4 {[%emt 0:00:17]} d6 {[%emt 0:00:36]} 4. Nf3 {[%emt 0:01:01]} Bg4 {[%emt 0:00:44]} 5. Be2 {[%emt 0:01:25]} Nc6 {[%emt 0:01:36]} 6. O-O {[%emt 0:01:26]} dxe5 {[%emt 0:03:26]} 7. dxe5 {[%emt 0:00:35]} e6 {[%emt 0:00:23]} 8. Bf4 {[%emt 0:00:57]} Nxf4 {[%emt 0:00:47]} 9. Nbd2 {[%emt 0:02:20]} Qd7 {[%emt 0:02:58]} 10. Re1 {[%emt 0:01:48]} O-O-O {[%emt 0:00:37]} 11. Bc4 {[%emt 0:01:27]} Ng6 {[%emt 0:04:41]} 12. Bb5 {[%emt 0:02:05]} Bc5 {[%emt 0:03:19]} 13. Qc1 {[%emt 0:01:34]} Qd5 {[%emt 0:01:51]} 14. c4 {[%emt 0:01:13]} Qd7 {[%emt 0:00:46]} 15. Rd1 {[%emt 0:00:28]} Bxf3 {[%emt 0:00:45]} 16. Nxf3 {[%emt 0:00:26]} Qxd1+ {[%emt 0:00:15]} 17. Qxd1 {[%emt 0:00:54]} Rxd1+ {[%emt 0:00:10]} 18. Rxd1 {[%emt 0:00:12]} Rd8 {[%emt 0:00:32]} 19. Re1 {[%emt 0:00:27]} Nd4 {[%emt 0:00:41]} 20. Ng5 {[%emt 0:01:45]} Nxb5 {[%emt 0:00:41]} 21. cxb5 {[%emt 0:00:29]} Bb4 {[%emt 0:00:13]} 22. Rf1 {[%emt 0:01:23]} Nxe5 {[%emt 0:00:32]} 23. f4 {[%emt 0:01:06]} Bc5+ {[%emt 0:00:36]} 24. Kh1 {[%emt 0:00:55]} Nd3 {[%emt 1:15:51]} 25. Nxf7 {[%emt 0:01:39]} Rf8 {[%emt 0:00:00]} 26. Ng5 {[%emt 0:00:52]} Rxf4 {[%emt 0:00:00]} 27. Rxf4 {[%emt 0:00:34]} Nxf4 {[%emt 0:00:00]} 28. g3 {[%emt 0:00:15]} h6 {[%emt 0:00:00]} 29. gxf4 {[%emt 0:00:40]} hxg5 {[%emt 0:00:00]} 30. fxg5 {[%emt 0:00:08]} Kd7 {[%emt 0:00:00]} 31. Kg2 {[%emt 0:00:10]} Ke7 {[%emt 0:00:00]} 32. Kf3 {[%emt 0:00:24]} Kf7 {[%emt 0:00:00]} 33. Ke4 {[%emt 0:00:37]} Bd6 {[%emt 0:00:00]} 34. h4 {[%emt 0:00:36]} Kg6 {[%emt 0:00:00]} 35. a4 {[%emt 0:00:59]} b6 {[%emt 0:00:00]} 36. b4 {[%emt 0:00:27]} Kh5 {[%emt 0:00:00]} 37. a5 {[%emt 0:00:11]} bxa5 {[%emt 0:00:00]} 38. bxa5 {[%emt 0:00:08]} Kxh4 {[%emt 0:00:00]} 39. b6 {[%emt 0:00:09]} cxb6 {[%emt 0:00:00]} 40. axb6 {[%emt 0:00:45]} axb6 {[%emt 0:00:00]} 41. g6 {[%emt 0:00:07]} Kg5 {[%emt 0:08:30]} 42. Kd4 {[%emt 0:00:22]} Kxg6 {[%emt 0:00:00]} 43. Ke4 {[%emt 0:00:30]} Kh5 {[%emt 0:00:00]} 44. Kf3 {[%emt 0:00:16]} b5 {[%emt 0:00:00]} 45. Kg2 {[%emt 0:00:18]} b4 {[%emt 0:00:00]} 46. Kf3 {[%emt 0:00:10]} b3 {[%emt 0:00:00]} 47. Ke4 {[%emt 0:00:14]} b2 {[%emt 0:00:00]} 48. Kd4 {[%emt 0:00:18]} b1=Q {[%emt 0:03:30]} 49. Kc4 {[%emt 1:19:41]} Qb4+ {[%emt 0:00:00]} 50. Kd3 {[%emt 0:00:00]} Bf8 {[%emt 0:00:00]} 51. Kc2 {[%emt 0:00:00]} Qd4 {[%emt 0:00:00]} 52. Kb3 {[%emt 0:00:00]} Qc5 {[%emt 0:00:00]} 53. Kb2 {[%emt 0:00:00]} Qc4 {[%emt 0:00:00]} 54. Ka1 {[%emt 0:00:00]} Qb4 {[%emt 0:00:00]} 55. Ka2 {[%emt 0:00:00]} Kg4 {[%emt 0:00:00]} 56. Ka1 {[%emt 0:00:00]} Kf3 {[%emt 0:00:00]} 57. Ka2 {[%emt 0:00:00]} Ke3 {[%emt 0:00:00]} 58. Ka1 {[%emt 0:00:00]} Kd2 {[%emt 0:00:00]} 59. Ka2 {[%emt 0:00:00]} Kc2 {[%emt 0:00:00]} 60. Ka1 {[%emt 0:00:00]} Qb2# {[%emt 0:00:00]} 0-1

[Event "Catalan Youth Championship 2024"]
[Site "Cambrils"]
[Date "2024.03.27"]
[Round "7.5"]
[White "Hijarrubia Alvarez-Cuevas, Gonzalo"]
[Black "Bru Montoya, Pau"]
[Result "1-0"]
[ECO "C45"]
[WhiteElo "1827"]
[BlackElo "1850"]
[Annotator "NA RC"]
[PlyCount "69"]
[EventDate "2024.03.13"]
[EventType "swiss"]
[EventCountry "ESP"]
[SourceTitle "playchess.com"]
[Source "ChessBase"]
[SourceQuality "1"]
[TimeControl "5400+30"]

1. e4 {[%emt 0:00:03]} e5 {[%emt 0:00:08]} 2. Nf3 {[%emt 0:00:03]} Nc6 {[%emt 0:00:09]} 3. d4 {[%emt 0:00:04]} exd4 {[%emt 0:00:09]} 4. Nxd4 {[%emt 0:00:04]} Bb4+ {[%emt 0:00:44]} 5. c3 {[%emt 0:00:08]} Bc5 {[%emt 0:00:08]} 6. Be3 {[%emt 0:00:05]} Bb6 {[%emt 0:00:16]} 7. Nf5 {[%emt 0:00:22]} Bxe3 {[%emt 1:32:26]} 8. Nxe3 {[%emt 0:07:05]} Nf6 {[%emt 0:00:00]} 9. Bd3 {[%emt 0:02:06]} O-O {[%emt 0:01:00]} 10. c4 $14 {[%emt 0:04:26]} Re8 {[%emt 0:00:00]} 11. Nc3 {[%emt 0:00:55]} b6 {[%emt 0:00:00]} 12. O-O {[%emt 0:01:07]} Bb7 {[%emt 0:00:00]} 13. f3 {[%emt 1:20:32]} d6 {[%emt 0:00:00]} 14. Qd2 {[%emt 0:00:30]} Ne5 {[%emt 0:00:00]} 15. Rfe1 {[%emt 0:00:00]} Nh5 {[%emt 0:00:00]} 16. Bf1 {[%emt 0:00:00]} Qg5 {[%emt 0:00:00]} 17. Kh1 {[%emt 0:00:00]} Re6 {[%emt 0:00:00]} 18. Rad1 {[%emt 0:00:00]} Rh6 {[%emt 0:00:00]} 19. Nf5 {[%emt 0:00:00]} Qxd2 {[%emt 0:00:00]} 20. Rxd2 {[%emt 0:00:00]} Rf6 {[%emt 0:00:00]} 21. b3 {[%emt 0:00:00]} Kf8 {[%emt 0:00:00]} 22. Nb5 {[%emt 0:04:00]} g6 {[%emt 0:00:00]} 23. Ne3 {[%emt 0:00:00]} Rc8 {[%emt 0:00:00]} 24. Nxa7 {[%emt 0:00:00]} Rd8 {[%emt 0:00:00]} 25. Nb5 {[%emt 0:00:00]} c6 {[%emt 0:08:00]} 26. Nc3 {[%emt 0:00:00]} Nf4 {[%emt 0:00:00]} 27. Red1 {[%emt 0:00:00]} Ke7 {[%emt 0:00:00]} 28. Na4 {[%emt 0:00:00]} h5 {[%emt 0:00:00]} 29. Nxb6 {[%emt 0:00:00]} Rh8 {[%emt 0:00:00]} 30. c5 {[%emt 0:00:00]} dxc5 {[%emt 0:00:00]} 31. Nbc4 {[%emt 0:04:30]} Re6 {[%emt 0:01:06]} 32. Nxe5 {[%emt 0:00:00]} Rxe5 {[%emt 0:00:01]} 33. Rd7+ {[%emt 0:00:00]} Kf6 {[%emt 0:00:15]} 34. Rxb7 {[%emt 0:00:00]} h4 {[%emt 0:00:22]} 35. Ng4+ {[%emt 0:00:00]} 1-0

[Event "Catalan Youth Championship 2024"]
[Site "Cambrils"]
[Date "2024.03.27"]
[Round "7.6"]
[White "Tallada Serret, Gerard"]
[Black "Presas Gharbi, Rayan"]
[Result "1-0"]
[ECO "B22"]
[WhiteElo "2085"]
[BlackElo "1705"]
[Annotator "NA RC"]
[PlyCount "53"]
[EventDate "2024.03.13"]
[EventType "swiss"]
[EventCountry "ESP"]
[SourceTitle "playchess.com"]
[Source "ChessBase"]
[SourceQuality "1"]
[TimeControl "5400+30"]

1. e4 {[%emt 1:31:00]} c5 {[%emt 1:31:00]} 2. Nf3 {[%emt 0:00:30]} e6 {[%emt 0:00:30]} 3. c3 {[%emt 0:00:30]} Nf6 {[%emt 0:00:30]} 4. e5 {[%emt 0:00:30]} Nd5 {[%emt 0:00:30]} 5. d4 {[%emt 0:00:30]} cxd4 {[%emt 0:00:30]} 6. cxd4 {[%emt 0:00:30]} b6 {[%emt 0:00:30]} 7. Bd3 {[%emt 0:00:30]} Ba6 {[%emt 0:00:30]} 8. O-O {[%emt 0:00:30]} Be7 {[%emt 0:00:30]} 9. Nc3 {[%emt 0:00:30]} Nxc3 {[%emt 0:00:30]} 10. bxc3 {[%emt 0:00:30]} Bxd3 {[%emt 0:00:30]} 11. Qxd3 {[%emt 0:00:30]} O-O {[%emt 0:00:30]} 12. Bf4 {[%emt 0:00:30]} d5 {[%emt 0:00:30]} (12... Qe8 $14) 13. exd6 {[%emt 0:00:30]} Bxd6 {[%emt 0:00:30]} 14. Qe4 $2 {[%emt 0:00:30]} (14. Ng5 $1 $18 {[%csl Gg5][%cal Rd3h7]} g6 15. Qh3) 14... Na6 {[%emt 0:00:30]} 15. Ng5 $14 {[%emt 0:00:30]} g6 {[%emt 0:00:30]} 16. Bd2 {[%emt 0:00:30]} Be7 {[%emt 0:00:30]} 17. Qh4 {[%emt 0:00:30]} h5 {[%emt 0:00:30]} 18. Qg3 {[%emt 0:00:30]} Nc5 {[%emt 0:00:30]} 19. Rfe1 {[%emt 0:00:30]} Nd7 {[%emt 0:00:30]} 20. Nxe6 {[%emt 0:00:30]} fxe6 {[%emt 0:00:30]} 21. Qxg6+ {[%emt 0:00:30]} Kh8 {[%emt 0:00:30]} 22. Qxh5+ {[%emt 0:00:30]} Kg8 {[%emt 0:00:30]} 23. Qg6+ {[%emt 0:00:30]} Kh8 {[%emt 0:00:30]} 24. Re3 {[%emt 0:00:30]} Bh4 {[%emt 0:00:30]} 25. Rh3 {[%emt 0:00:30]} Rxf2 {[%emt 0:00:30]} 26. Bg5 {[%emt 0:00:30]} Rxg2+ {[%emt 0:00:30]} 27. Kxg2 {[%emt 0:00:30]} 1-0

[Event "Catalan Youth Championship 2024"]
[Site "Cambrils"]
[Date "2024.03.27"]
[Round "7.7"]
[White "Perez Llaurado, Adria"]
[Black "Villa Peiro, Joan"]
[Result "0-1"]
[ECO "C01"]
[WhiteElo "1749"]
[BlackElo "1720"]
[Annotator "NA RC"]
[PlyCount "54"]
[EventDate "2024.03.13"]
[EventType "swiss"]
[EventCountry "ESP"]
[SourceTitle "playchess.com"]
[Source "ChessBase"]
[SourceQuality "1"]
[TimeControl "5400+30"]

1. e4 {[%emt 0:00:07]} e6 {[%emt 0:00:06]} 2. d4 {[%emt 0:01:27]} d5 {[%emt 0:00:06]} 3. Bd3 {[%emt 0:01:57]} dxe4 {[%emt 0:00:08]} 4. Bxe4 {[%emt 0:00:13]} Nf6 {[%emt 0:00:04]} 5. Bf3 {[%emt 0:00:21]} Nbd7 {[%emt 0:00:07]} 6. Ne2 {[%emt 0:04:21]} Bd6 {[%emt 0:00:12]} 7. c4 {[%emt 0:02:02]} c6 {[%emt 0:00:34]} 8. Nbc3 {[%emt 0:01:07]} O-O {[%emt 0:00:07]} 9. O-O {[%emt 0:04:29]} e5 {[%emt 0:00:29]} 10. Be3 {[%emt 0:03:09]} Re8 {[%emt 0:01:46]} 11. g3 {[%emt 0:00:28]} exd4 {[%emt 0:03:14]} 12. Qxd4 {[%emt 0:08:36]} Bc5 {[%emt 0:02:48]} 13. Qf4 {[%emt 0:00:11]} Bxe3 {[%emt 0:01:18]} 14. fxe3 {[%emt 0:00:37]} Qb6 {[%emt 0:01:43]} 15. Nd1 {[%emt 0:08:07]} Ne5 {[%emt 0:06:34]} 16. b3 {[%emt 0:08:00]} Bh3 {[%emt 0:04:31]} 17. Bg2 {[%emt 0:03:50]} Bxg2 {[%emt 0:00:39]} 18. Kxg2 {[%emt 0:01:04]} Neg4 {[%emt 0:00:12]} 19. Nd4 {[%emt 0:04:17]} Re4 {[%emt 0:00:38]} 20. Qf3 {[%emt 0:05:56]} Nxe3+ {[%emt 0:03:32]} 21. Nxe3 {[%emt 0:00:57]} Qxd4 {[%emt 0:00:28]} 22. Nf5 {[%emt 0:00:27]} Qb2+ {[%emt 0:00:07]} 23. Kg1 {[%emt 0:03:47]} Ng4 {[%emt 0:01:35]} 24. Rfe1 {[%emt 0:04:20]} Rae8 {[%emt 0:06:12]} 25. Rxe4 {[%emt 0:04:02]} Qxa1+ {[%emt 0:01:03]} 26. Kg2 {[%emt 0:04:06]} Qxa2+ {[%emt 0:00:35]} 27. Kg1 {[%emt 0:01:37]} Rxe4 {[%emt 0:00:20]} 0-1

[Event "Catalan Youth Championship 2024"]
[Site "Cambrils"]
[Date "2024.03.27"]
[Round "7.8"]
[White "Monclus Janssens, Jack"]
[Black "Berrozpe Gonzalez, Marc"]
[Result "1/2-1/2"]
[ECO "C56"]
[WhiteElo "1707"]
[BlackElo "1743"]
[Annotator "NA RC"]
[PlyCount "61"]
[EventDate "2024.03.13"]
[EventType "swiss"]
[EventCountry "ESP"]
[SourceTitle "playchess.com"]
[Source "ChessBase"]
[SourceQuality "1"]
[TimeControl "5400+30"]

1. e4 {[%emt 0:00:16]} e5 {[%emt 0:00:15]} 2. Nf3 {[%emt 0:00:13]} Nc6 {[%emt 0:00:20]} 3. d4 {[%emt 0:00:38]} exd4 {[%emt 0:00:53]} 4. Bc4 {[%emt 0:00:17]} Bc5 {[%emt 0:01:29]} 5. c3 {[%emt 0:00:25]} Nf6 {[%emt 0:02:19]} 6. e5 {[%emt 0:01:07]} d5 {[%emt 0:02:11]} 7. Bb5 {[%emt 0:01:58]} Ne4 {[%emt 0:01:33]} 8. Nxd4 {[%emt 0:05:05]} Bd7 {[%emt 0:08:15]} 9. Bxc6 {[%emt 0:04:29]} bxc6 {[%emt 0:05:17]} 10. O-O {[%emt 0:01:18]} O-O {[%emt 0:07:54]} 11. f3 {[%emt 0:02:57]} Ng5 {[%emt 0:03:30]} 12. f4 {[%emt 0:01:47]} Ne4 {[%emt 0:02:49]} 13. Nd2 {[%emt 0:07:09]} f5 {[%emt 0:05:25]} 14. Nxe4 {[%emt 0:03:49]} fxe4 {[%emt 0:02:49]} 15. Be3 {[%emt 0:02:59]} Qe7 {[%emt 0:03:54]} 16. Qd2 {[%emt 0:03:05]} Bb6 {[%emt 0:06:46]} 17. Nb3 {[%emt 0:06:15]} a5 {[%emt 0:04:13]} 18. a4 {[%emt 0:10:16]} Be6 {[%emt 0:11:52]} 19. Qf2 {[%emt 0:05:17]} Bxe3 {[%emt 0:09:27]} 20. Qxe3 {[%emt 0:00:27]} Rfb8 {[%emt 0:03:54]} 21. Ra3 {[%emt 0:13:33]} g6 {[%emt 0:01:26]} 22. Qc5 {[%emt 0:03:20]} Qxc5+ {[%emt 0:01:20]} 23. Nxc5 {[%emt 0:00:24]} Kf7 {[%emt 0:01:14]} 24. b3 {[%emt 0:05:00]} Rb6 {[%emt 0:03:05]} 25. Kf2 {[%emt 0:01:44]} Bf5 {[%emt 0:01:42]} 26. Ke3 {[%emt 0:00:59]} Ke7 {[%emt 0:01:15]} 27. h3 {[%emt 0:01:37]} h5 {[%emt 0:00:43]} 28. h4 {[%emt 0:01:24]} Rab8 {[%emt 0:01:44]} 29. Rd1 {[%emt 0:01:25]} Bg4 {[%emt 0:01:48]} 30. Rd2 {[%emt 0:00:46]} Bf5 {[%emt 0:00:54]} 31. Kd4 {[%emt 0:01:11]} 1/2-1/2

[Event "Catalan Youth Championship 2024"]
[Site "Cambrils"]
[Date "2024.03.27"]
[Round "7.9"]
[White "Alonso Gimenez, Mauro"]
[Black "Prada Villagrasa, Pau Manel"]
[Result "0-1"]
[ECO "B10"]
[WhiteElo "1980"]
[BlackElo "2103"]
[Annotator "RC"]
[PlyCount "120"]
[EventDate "2024.03.13"]
[EventType "swiss"]
[EventCountry "ESP"]
[SourceTitle "playchess.com"]
[Source "ChessBase"]
[SourceQuality "1"]
[TimeControl "5400+30"]

1. e4 {[%emt 1:31:00]} c6 {[%emt 1:31:00]} 2. Nf3 {[%emt 0:00:30]} d5 {[%emt 0:00:30]} 3. exd5 {[%emt 0:00:30]} cxd5 {[%emt 0:00:30]} 4. Ne5 {[%emt 0:00:30]} a6 {[%emt 0:00:30]} 5. d4 {[%emt 0:00:30]} Nc6 {[%emt 0:00:30]} 6. c3 {[%emt 0:00:30]} Nxe5 {[%emt 0:00:30]} 7. dxe5 {[%emt 0:00:30]} Bf5 {[%emt 0:00:30]} 8. Bd3 {[%emt 0:00:30]} Bxd3 {[%emt 0:00:30]} 9. Qxd3 {[%emt 0:00:30]} e6 {[%emt 0:00:30]} 10. Nd2 {[%emt 0:00:30]} Bc5 {[%emt 0:00:30]} 11. Nb3 {[%emt 0:00:30]} Ba7 {[%emt 0:00:30]} 12. Be3 {[%emt 0:00:30]} Qc7 {[%emt 0:00:30]} 13. Bxa7 {[%emt 0:00:30]} Rxa7 {[%emt 0:00:30]} 14. Qe3 {[%emt 0:00:30]} b6 {[%emt 0:00:30]} 15. O-O {[%emt 0:00:30]} Ne7 {[%emt 0:00:30]} 16. Nd4 {[%emt 0:00:30]} O-O {[%emt 0:00:30]} 17. f4 {[%emt 0:00:30]} Qc5 {[%emt 0:00:30]} 18. f5 {[%emt 0:00:30]} exf5 {[%emt 0:00:30]} 19. Nxf5 {[%emt 0:00:30]} Nc6 {[%emt 0:00:30]} 20. Kh1 {[%emt 0:00:30]} Qxe3 {[%emt 0:00:30]} 21. Nxe3 {[%emt 0:00:30]} Rd8 {[%emt 0:00:30]} 22. Rad1 {[%emt 0:00:30]} Rad7 {[%emt 0:00:30]} 23. Rd2 {[%emt 0:00:30]} Nxe5 {[%emt 0:00:30]} 24. Rfd1 {[%emt 0:00:30]} b5 {[%emt 0:00:30]} 25. Rxd5 {[%emt 0:00:30]} Rxd5 {[%emt 0:00:30]} 26. Nxd5 {[%emt 0:00:30]} Kf8 {[%emt 0:00:30]} 27. Kg1 {[%emt 0:00:30]} f5 {[%emt 0:00:30]} 28. Kf2 {[%emt 0:00:30]} g5 {[%emt 0:00:30]} 29. h3 {[%emt 0:00:30]} f4 {[%emt 0:00:30]} 30. Ke2 {[%emt 0:00:30]} Rd6 {[%emt 0:00:30]} 31. b3 {[%emt 0:00:30]} Kf7 {[%emt 0:00:30]} 32. a4 {[%emt 0:00:30]} bxa4 {[%emt 0:00:30]} 33. bxa4 {[%emt 0:00:30]} a5 {[%emt 0:00:30]} 34. h4 {[%emt 0:00:30]} h6 {[%emt 0:00:30]} 35. hxg5 {[%emt 0:00:30]} hxg5 {[%emt 0:00:30]} 36. Rd4 {[%emt 0:00:30]} Rc6 {[%emt 0:00:30]} 37. g3 {[%emt 0:00:30]} f3+ {[%emt 0:00:30]} 38. Kf2 {[%emt 0:00:30]} Ke6 {[%emt 0:00:30]} 39. g4 {[%emt 0:00:30]} Rc5 {[%emt 0:00:30]} 40. Ne3 {[%emt 0:00:30]} Rxc3 41. Rd8 Ra3 42. Re8+ Kd6 43. Rd8+ Kc6 44. Rc8+ Kb7 45. Rg8 Ra2+ 46. Kg3 Re2 47. Rg7+ Kc6 48. Nf5 Rg2+ 49. Kh3 Rxg4 50. Re7 Re4 51. Nd4+ Kd5 52. Nb5 Kc5 53. Nc3 Re1 54. Kg3 g4 55. Rc7+ Kd4 56. Nb5+ Ke3 57. Re7 Rg1+ 58. Kh2 f2 59. Rxe5+ Kf4 60. Re8 g3+ 0-1